Cogmind - Beta 16 @@@ ROGUE MODE // 2025.12.31 @ 07:20:39 Player: Zaros426 Result: Smashed by cave-in Performance ------------- Evolutions (0) 0 Regions Visited (3) 600 Robots Destroyed (61) 305 Value Destroyed (1351) 1351 Prototype IDs (5) 100 Alien Tech Used (0) 0 Bonus (2) 2 TOTAL SCORE: 2358 Bonus ------- Follower Combat Kills 25 Friendly Fire -23 Cogmind --------- Core Integrity 0/250 Matter 259/300 Energy 100/100 System Corruption 9% Temperature Cool (2) Movement Treading (165) Location -10/Subcaves Parts ------- > --- POWER (1) -------- (None) > --- PROPULSION (2) --- Spiked Treads Armored Treads > --- UTILITY (2) ------ Scrap Shield > --- WEAPON (2) ------- Subdweller Beam Cannon > --- INVENTORY (5) ---- Arachnoskeleton Huge Storage Unit Machine Analyzer Peak State ------------ > --- POWER ------------ Neutrino Core > --- PROPULSION ------- Light Treads Armored Treads > --- UTILITY ---------- Scrap Shield > --- WEAPON ----------- Ion Cannon Battle Cannon > --- INVENTORY -------- Arachnoskeleton Huge Storage Unit Machine Analyzer [Rating: 21] Favorites ----------- Power Ion Engine Engine Ion Engine Power Core Neutrino Core Propulsion Light Treads Treads Light Treads Wheel Wheel Utility Scrap Shield Device Seismic Detector Storage Huge Storage Unit Protection Scrap Shield Weapon Assault Rifle Energy Gun EM Pulse Gun Energy Cannon Ion Cannon Ballistic Gun Assault Rifle Ballistic Cannon Battle Cannon Special Weapon Mining Laser Build | -11 -10 -10 -10 ------- Run | Yrd Mat Min Sub Slots Evolved . | . . . . Power . | . . . . Propulsion . | . . . . Utility . | . . . . Weapon . | . . . . Parts Attached 28 | 6 7 6 9 Power 4 | 1 1 . 2 Engine 3 | 1 1 . 1 Core 1 | . . . 1 Reactor . | . . . . Propulsion 7 | 2 1 2 2 Treads 6 | 2 1 1 2 Leg . | . . . . Wheel 1 | . . 1 . Hover . | . . . . Flight . | . . . . Utility 6 | 2 1 2 1 Device 1 | 1 . . . Storage 3 | 1 1 1 . Processor . | . . . . Hackware . | . . . . Protection 2 | . . 1 1 Artifact . | . . . . Weapon 11 | 1 4 2 4 Energy Gun 3 | . 3 . . Energy Cannon 3 | . . 1 2 Ballistic Gun 3 | 1 . 1 1 Ballistic Cannon 1 | . . . 1 Launcher . | . . . . Special Weapon 1 | . 1 . . Impact Weapon . | . . . . Slashing Weapon . | . . . . Piercing Weapon . | . . . . Special Melee Weapon . | . . . . Unidentified Prototypes . | . . . . Parts Lost 4 | . 1 1 2 Power 1 | . . . 1 Propulsion . | . . . . Utility 1 | . . 1 . Weapon 2 | . 1 . 1 Highest Loss Streak 2 | . 1 1 2 To Critical Strikes . | . . . . Average Backups 7 | 1 7 16 3 Power . | . . . . Propulsion 1 | . 1 3 . Utility 4 | . 4 8 2 Weapon 1 | 1 1 3 . Tool/Special . | . . . . Unused Backups 18 | . 1 1 16 Power . | . . . . Propulsion 4 | . . . 4 Utility 11 | . . 1 10 Weapon 3 | . 1 . 2 Tool/Special . | . . . . Average Slot Usage (%) 90 | . 99 91 85 Engine 13 | . 14 14 13 Treads 26 | . 28 21 27 Wheel 1 | . . 6 . Device 5 | . 14 5 . Storage 7 | . 14 14 . Protection 6 | . . . 13 Energy Gun 3 | . 15 . . Energy Cannon 8 | . . 7 14 Ballistic Gun 11 | . 11 19 6 Ballistic Cannon 3 | . . . 7 Peak Build Rating 21 | 6 8 17 21 Average Rating 12 | 4 7 11 15 On Entrance 7 | . 6 8 17 Avg Prop Armor Cover (%) 14 | . . 14 . Naked Turns . | . . . . Heaviest Build 96 | 13 20 96 96 Greatest Support 40 | 40 40 40 40 Greatest Overweight (x) 9 | . . 9 9 Average Overweight (x) 1 | . . 5 . Largest Inventory Capacity 25 | 8 10 25 25 Average Capacity 11 | 7 9 22 5 Most Carried 21 | 4 10 21 21 Average Carried 8 | 1 7 17 5 Final Capacity 25 | 8 10 25 5 Final Carried 21 | 4 10 21 5 Class Distribution -------------------- 74% | Mutant 24% | Subdweller-Mutant Dominant Class ---------------- Mutant | -10/Materials Mutant | -10/Mines Subdweller-Mutant | -10/Subcaves Resources | -11 -10 -10 -10 ----------- Run | Yrd Mat Min Sub Matter Collected 1526 | 196 557 378 395 Remotely . | . . . . Salvage Created 2105 | 71 1297 374 363 Parts 130 | 7 64 23 36 Haulers Intercepted 2 | . 2 . . Recyclers Shooed 3 | . 3 . . Parts Field Recycled . | . . . . Retrieved Matter . | . . . . Parts Self-Destructed 13 | . . . 13 Prevented . | . . . . Parts Restored . | . . . . Kills | -11 -10 -10 -10 ------- Run | Yrd Mat Min Sub Combat Hostiles Destroyed 37 | . 18 4 15 Melee 1 | . . . 1 Guns 22 | . 16 4 2 Cannons 12 | . . . 12 AOE 1 | . 1 . . Classes Destroyed 11 | 2 8 . 1 Worker 6 | . 3 3 . Builder 2 | . 1 1 . Tunneler 2 | 1 . 1 . Hauler 2 | . 2 . . Recycler 5 | 1 3 1 . Mechanic 2 | . 1 1 . Operator 2 | . 2 . . Watcher 3 | . 3 . . Swarmer 9 | . 3 1 5 Grunt 18 | . 15 3 . Subdweller 10 | . . . 10 Best Kill Streak 6 | 2 6 5 2 Combat Bots Only 3 | . 3 3 2 Max Kills in Single Turn 2 | 1 2 2 1 Gunslinging 1 | . 1 1 . Exploded 1 | . 1 . . Melee 1 | . . . 1 Uniques/NPCs Destroyed . | . . . . Combat | -11 -10 -10 -10 -------- Run | Yrd Mat Min Sub Hostile Shots Fired 131 | . 40 28 63 Missed 44 | . 11 12 21 Hits 87 | . 29 16 42 Projectile 87 | . 29 16 42 Critical Strikes 3 | . 1 . 2 Damage Taken 1641 | . 337 230 1074 Core 286 | . 79 61 146 Absorbed by Shields . | . . . . Core Remaining (%) 100 | 100 . . . Volleys Fired 215 | 10 97 24 84 Largest 2 | 1 2 2 2 Hottest 113 | 20 100 80 113 Shots Fired 372 | 10 164 42 156 Gun 250 | 10 161 36 43 Cannon 119 | . . 6 113 Launcher . | . . . . Special 3 | . 3 . . Kinetic 197 | 10 66 36 85 Thermal 80 | . 3 6 71 Explosive . | . . . . Electromagnetic 95 | . 95 . . Robot Hit Streak 19 | 4 10 8 19 Robot Miss Streak 4 | 1 4 2 4 Penetration Max . | . . . . Secondary Targets 4 | . 2 2 . Max Gunslinging Chain 1 | . 1 1 . Shots Hit Robots 190 | 5 105 29 51 Core Hits 90 | 3 50 16 21 Critical Kills . | . . . . Critical Parts Destroyed 1 | . 1 . . Critical Strikes 3 | . 2 . 1 Destroy 2 | . 1 . 1 Corrupt 1 | . 1 . . Melee Attacks . | . . . . Impact . | . . . . Slashing . | . . . . Piercing . | . . . . Sneak Attacks . | . . . . Combat Hostiles . | . . . . Follow-up Attacks . | . . . . Damage Inflicted 3263 | 73 1558 441 1191 Guns 2235 | 73 1441 370 351 Cannons 909 | . . 71 838 Explosions 117 | . 117 . . Melee . | . . . . Ramming 2 | . . . 2 Kinetic 1687 | 73 573 370 671 Thermal 706 | . 117 71 518 Explosive . | . . . . Electromagnetic 868 | . 868 . . Impact . | . . . . Slashing . | . . . . Piercing . | . . . . Highest Corruption 1 | . 1 1 1 Average Corruption 1 | . 1 1 1 Corruption Purged . | . . . . Corruption Blocked . | . . . . Effects 41 | . 7 16 18 Message Errors 10 | . 3 3 4 Matter Fused 12 | . 1 5 6 Heat Flow Errors 5 | . . 3 2 Energy Discharges 4 | . 1 3 . Data Loss (minor) 3 | . 1 . 2 Data Loss (major) 1 | . . 1 . Misfires 2 | . . . 2 Alerts 2 | . 1 . 1 Weapon Failures 2 | . . 1 1 Overload Shots . | . . . . Overflow Damage . | . . . . Projectiles . | . . . . Explosions . | . . . . Melee . | . . . . Knockbacks 5 | . . . 5 Impact . | . . . . Kinetic 5 | . . . 5 Secondary . | . . . . Self-Inflicted Damage . | . . . . Shots . | . . . . Rammed . | . . . . Targets Rammed 1 | . . . 1 Kicked . | . . . . Crushed 1 | . . . 1 Highest Temperature 290 | . 174 279 290 Average Temperature 54 | . 41 73 119 Received Heat Transfer 827 | . 186 108 533 Effects 2 | . . 2 . Interference 2 | . . 2 . Siege Activations . | . . . . Martial Activations . | . . . . Shielding Activations . | . . . . Robots Disrupted 1 | . 1 . . Combat Hostiles 1 | . 1 . . Robots Corrupted 1 | . 1 . . Combat Hostiles 1 | . 1 . . Parts Fried 4 | . 4 . . Impact Corruptions . | . . . . Robots Melted . | . . . . Combat Hostiles . | . . . . Parts Melted 2 | . . . 2 Heat Transferred 1038 | . 150 111 777 Parts Sabotaged . | . . . . Parts Stolen . | . . . . Parts Stripped . | . . . . Power Chain Reactions 3 | . 3 . . Alert | -11 -10 -10 -10 ------- Run | Yrd Mat Min Sub Maximum Alert Level 1 | . 1 . . Low Security (%) 84 | 100 66 100 . Level 1 15 | . 33 . . Level 2 . | . . . . Level 3 . | . . . . Level 4 . | . . . . Level 5 . | . . . . High Security . | . . . . Max Security . | . . . . Peak Influence 298 | 5 298 99 . Initial 99 | . . 99 . Average 78 | 1 150 14 . Influence Increases 1121 | 10 748 173 190 Destroy 0b10 Robot/C 560 | . 360 100 100 Destroy 0b10 Robot/NC 120 | 10 75 35 . Destroy Leader 110 | . 90 20 . Allied During Kill 2 | . . 2 . Successful Hack 59 | . 59 . . Select Force Hacks 60 | . 60 . . Disable Machine 60 | . 60 . . Destroy Structure 15 | . 14 1 . Lose Combat Pursuer 135 | . 30 15 90 Influence Decreases 1121 | 10 492 429 190 Entered New Map 157 | . . 157 . Time Decay 924 | 10 482 242 190 Lost Part 20 | . 10 10 . Lost Ally 20 | . . 20 . Squads Dispatched 6 | . 5 1 . Investigation 3 | . 3 . . Extermination . | . . . . Reinforcement 2 | . 2 . . Assault 1 | . . 1 . Garrison . | . . . . Intercept . | . . . . Searches Triggered . | . . . . Construction Impeded . | . . . . Haulers Reinforced . | . . . . Active Scanning Responses . | . . . . Cargo Convoy Interrupts . | . . . . Stealth | -11 -10 -10 -10 --------- Run | Yrd Mat Min Sub Distress Signals 2 | . 1 1 . Communications Jammed . | . . . . Distress Signals . | . . . . Times Spotted 62 | . 33 5 24 Peak Tracking Total 4 | . 3 3 4 Tactical Retreats 5 | . 2 1 2 Traps | -11 -10 -10 -10 ------- Run | Yrd Mat Min Sub Traps Triggered 3 | . 2 1 . Indirectly . | . . . . Trap Hack Attempts . | . . . . Triggered . | . . . . Disarmed . | . . . . Reprogrammed . | . . . . Reused . | . . . . Traps Extracted . | . . . . Installed . | . . . . Triggered . | . . . . Machines | -11 -10 -10 -10 ---------- Run | Yrd Mat Min Sub Machines Disabled 5 | . 4 . 1 Max in Single Turn 1 | . 1 . 1 Machines Repaired . | . . . . Machines Dismantled . | . . . . Machines Sabotaged . | . . . . Overloaded Fab Kills . | . . . . Hacking | -11 -10 -10 -10 --------- Run | Yrd Mat Min Sub Machines Accessed 9 | . 8 1 . Terminals 6 | . 6 . . Fabricators . | . . . . Repair Stations . | . . . . Recycling Units 2 | . 2 . . Scanalyzers . | . . . . Garrison Access . | . . . . Total Hacks 32 | . 31 1 . Successful 18 | . 17 1 . Failed 14 | . 14 . . Catastrophic 1 | . 1 . . Database Lockouts . | . . . . Manual 18 | . 18 . . Terminals 28 | . 28 . . Fabricators . | . . . . Repair Stations . | . . . . Recycling Units 3 | . 3 . . Scanalyzers . | . . . . Garrison Access . | . . . . Terminal Hacks 11 | . 10 1 . Record 1 | . 1 . . Robot Analysis 3 | . 3 . . Prototype ID Bank 3 | . 3 . . Open Door 1 | . . 1 . Locate Traps 1 | . 1 . . Dispatch Records 1 | . 1 . . Reinforcement Status 1 | . 1 . . Fabricator Hacks . | . . . . Repair Station Hacks . | . . . . Recycling Unit Hacks . | . . . . Scanalyzer . | . . . . Garrison Access Hacks . | . . . . Unauthorized Hacks 7 | . 7 . . Terminals 5 | . 5 . . Skim 5 | . 5 . . Fabricators . | . . . . Repair Stations . | . . . . Recycling Units 2 | . 2 . . Tunnel 2 | . 2 . . Scanalyzers . | . . . . Garrison Access . | . . . . Data Cores Recovered . | . . . . Used . | . . . . Hacking Detections 6 | . 6 . . Full Trace Events . | . . . . Feedback Events . | . . . . Feedback Blocked . | . . . . Robot Schematics Acquired . | . . . . Robots Built . | . . . . Authchips . | . . . . Time . | . . . . Total Robot Build Rating . | . . . . Part Schematics Acquired . | . . . . Parts Built . | . . . . Authchips . | . . . . Time . | . . . . Total Part Build Rating . | . . . . Part Studies Acquired . | . . . . Parts Repaired . | . . . . Time . | . . . . Parts Recycled . | . . . . Recycled Matter . | . . . . Retrieved Matter . | . . . . Retrieved Components . | . . . . Parts Scanalyzed . | . . . . Part Schematics Acquired . | . . . . Parts Damaged . | . . . . Bothacking | -11 -10 -10 -10 ------------ Run | Yrd Mat Min Sub Used RIF Installer . | . . . . Robots Hacked . | . . . . Non-combat . | . . . . Combat . | . . . . Robot Hacks Applied . | . . . . Relay Couplers Released . | . . . . Fabnet Peak Effective % . | . . . . Robots Rewired . | . . . . Allies Hacked . | . . . . Hacks Repelled . | . . . . Allies | -11 -10 -10 -10 -------- Run | Yrd Mat Min Sub Total Allies 1 | . . 1 . Largest Group 1 | . . 1 . Highest-Rated Group 31 | . . 31 . Highest-Rated Ally 31 | . . 31 . Total Orders . | . . . . Ally Attacks 8 | . . 8 . Total Damage 107 | . . 107 . Kills 1 | . . 1 . Allies Corrupted . | . . . . Allies Melted . | . . . . Intel | -11 -10 -10 -10 ------- Run | Yrd Mat Min Sub Active Infowar (turns) 1737 | 4 1588 145 . Seismic 1737 | 4 1588 145 . Robot Analysis Total 3 | . 3 . . Derelict Logs Recovered 1 | . . 1 . Drone Launches . | . . . . Drone Recoveries . | . . . . Exploration | -11 -10 -10 -10 ------------- Run | Yrd Mat Min Sub Turns Passed 6173 | 89 1588 1688 2808 Spaces Moved 2923 | 38 760 650 1475 Core 3 | 3 . . . Treads 2585 | 35 760 317 1473 Legs . | . . . . Wheels 335 | . . 333 2 Hover . | . . . . Flight . | . . . . Fastest Speed 50 | 50 160 160 165 Average Speed 179 | 151 160 235 166 Slowest Speed 325 | 160 160 325 325 Overloaded Moves . | . . . . Propulsion Burnouts . | . . . . Robots Hopped . | . . . . Potential Cave-ins 3 | . . . 3 Cave-ins Triggered 1 | . . . 1 Exploration Rate (%) 65 | 3 98 100 59 Regions Visited 3 Branch Regions 2 Pre-discovered Areas 3 | . 3 . . Known Exits Taken 1 | . 1 . . Unknown Exits Taken 2 | 1 . 1 . Scrap Searched 4 | . . . 4 Spaces Dug 38 | . 2 . 36 Terrain Destroyed 57 | . 13 1 43 Melee . | . . . . Projectile 47 | . 3 1 43 AOE 10 | . 10 . . Terrain Rammed . | . . . . Walls Destroyed . | . . . . Machines Disabled . | . . . . Actions | -11 -10 -10 -10 --------- Run | Yrd Mat Min Sub Total 3473 | 57 964 768 1684 Wait 226 | . 86 68 72 Move 2919 | 37 759 649 1474 Hop . | . . . . Pick Up 32 | 4 9 16 3 Fast Attach 14 | 6 . . 8 Attach 3 | . 2 1 . Detach . | . . . . Swap 13 | . 6 5 2 Drop 40 | . 5 5 30 Fire 215 | 10 97 24 84 Melee . | . . . . Ram . | . . . . Kick . | . . . . Crush 1 | . . . 1 Escape Stasis . | . . . . Rewire . | . . . . Trap . | . . . . Miscellaneous 10 | . . . 10 Route ------- -11/Scrapyard -10/Materials (discovered 6 exits: *Mat x3 / *Min x2 / [*Sub]) -10/Mines (discovered 4 exits: *Mat x2 / [*Exi] / [*Sub]) -10/Subcaves (discovered 3 exits: [*Mat x2] / [*Rec]) History --------- Turn | Location | Event 8 | -11/Scrapyard | Discovered new exit (range 15) 90 | -11/Scrapyard | Entered Materials 311 | -10/Materials | Build established: Mutant 408 | -10/Materials | Discovered new exit (range 16) 605 | -10/Materials | Discovered new exit (range 15) 716 | -10/Materials | Discovered new exit (range 6) 828 | -10/Materials | Discovered new exit (range 16) 1281 | -10/Materials | Discovered new exit (range 10) 1482 | -10/Materials | Learned 4 Recycling zone layouts 1526 | -10/Materials | Learned Storage emergency access door positions 1545 | -10/Materials | Discovered new exit (range 3) 1559 | -10/Materials | Learned location of Mines (-10) 1583 | -10/Materials | Learned Storage non-interactive machine intel 1600 | -10/Materials | Learned 4 Subcaves zone layouts 1636 | -10/Materials | Identified exit to Mines 1636 | -10/Materials | Identified exit to Materials 1678 | -10/Materials | Entered Mines 1728 | -10/Mines | Assembled infested the area 1788 | -10/Mines | Discovered new exit (range 8) 1835 | -10/Mines | Received a Rocket Launcher from a helpful Derelict 1893 | -10/Mines | Met a Derelict who couldn't figure out how to use a Trap Extractor 2026 | -10/Mines | Discovered new exit (range 5) 2186 | -10/Mines | Learned Materials stockpile data 2297 | -10/Mines | Met a Derelict testing a Signal Generator 2346 | -10/Mines | Core integrity fell below 50% 2460 | -10/Mines | Discovered exit to Materials (range 5) 2662 | -10/Mines | Discovered exit to Materials (range 16) 3366 | -10/Mines | Entered Subcaves 3367 | -10/Subcaves | Approached by a straggling Scientist 3421 | -10/Subcaves | Shifting Twisted Machinery released Battle Cannon 3777 | -10/Subcaves | A Subdweller sparked back to life 3777 | -10/Subcaves | A Subdweller sparked back to life 3777 | -10/Subcaves | A Subdweller sparked back to life 3800 | -10/Subcaves | Found Prototype Leg 3811 | -10/Subcaves | Discovered new exit (range 5) 4182 | -10/Subcaves | Discovered new exit (range 10) 4682 | -10/Subcaves | A swath of the cavern ceiling suddenly collapsed 4707 | -10/Subcaves | Discovered new exit (range 10) 4830 | -10/Subcaves | Shifting Twisted Machinery released Sub. Machine Gun 4830 | -10/Subcaves | Shifting Twisted Machinery released Sub. Laser 4958 | -10/Subcaves | Build established: Subdweller-Mutant 5050 | -10/Subcaves | A swath of the cavern ceiling suddenly collapsed 5113 | -10/Subcaves | Shifting Twisted Machinery released Sub. Shrapnel Launcher 5685 | -10/Subcaves | Core integrity fell below 20% 6148 | -10/Subcaves | Ambushed by Subdweller buried in earth 6174 | -10/Subcaves | Crushed by falling debris 6174 | -10/Subcaves | Smashed by cave-in Last Messages --------------- 05893_ Found Scrap Shield. 05893_ Found Spk. Treads. 05893_ Found 55 Matter. 05896_ Dropped Lgt. Treads. 05897_ Acquired Spk. Treads. 05898_ Acquired 10 matter. 05900_ Searching scrap... 05900_ Found Sub. Beam Cannon. 05900_ Found 42 Matter. 06039_ System corrupted: Matter fused (-7). 06149_ LN-KRW(R): "ARGHSUB!" 06160_ LN-KRW(R) destroyed. 06164_ Scrap Shield Fragment affixed to Scrap Shield (+42). 06167_ Scrap Shield Fragment affixed to Scrap Shield (+21). 06174_ The unstable cave ceiling collapses. 06174_ Crushed by falling debris. 06174_ Sub. Power Source destroyed. 06174_ System corrupted by crushing effect (+5). 06174_ Sub. Machine Gun destroyed. 06174_ System corrupted by crushing effect (+3). Map ----- +----------------------------------------------------+ | ######?### ??????????????????????????????????? | | ?????????#### ??????????????????????????????????? | | ?????????#### ??????????????????????????????????? | | ???????### ??????????????????????????????????? | | ??????## ??????????????????????????????????? | | ??????# ###??????????????????????????????????? | | ??????# #?#??????????????????????????????????? | | ?????## #????????????????????????????????????? | | ?????# #????????????????????????????????????? | | ?????### ##????????????????????????????????????? | | ???????## ##?????????????????????????????????????? | | ????????###??????????????????????????????????????? | | ?????????????????????????????????????????????????? | | ?????????????????????????????????????????????????? | | ?????????????????????????????????????????????????? | | ?????????????????????????????????????????????????? | | ?????????????????????????????????????????????????? | | ?????????????????????????????????????????????????? | | ?????????????????????????????????????????????????? | | ????????????????????????###??????????????????????? | | ???????????????????????? ###????????????????????? | | ???????????????????????##&*&##??##???????????????? | | ???????????????????????#! %= ### #?? ????????????? | | ???????????????????????## # ## ####?????????????? | | ???????????????????????## # # ????????????? | | ???????????????????????##@ ### ####?????????????? | | ???????????????########## ######????? ?????????? | | ????????????#### ##=## # #######??????????????? | | ????????????# % ; #??????????????? | | ????????????# #"### # # ####### ?????????????? | | # ???????## ##?####### ####??????# ?????????? | | ### #???????# #??# ?????##?????????? | | #???###### ####??????#??????????? | | ###### ##????????##?????????? | | ?# #### #????? ???#?????????? | | ?### ##???# ##????????##?????????? | | ???## ??????## # ##???##? ?##??????????? | | ????# ?#####?## #######?? ##???#???????????? | | ????## ??# #?# ##???#####????#???????????? | | ?#####???# #### ##??????#???##???????????? | | ?# ##???# #?# #??????#####????????????? | | ?# ##?## #?# #?????????????#?????????? | | ## ### #?# ##?#############?????????? | | #?# ##?# #""########?????????? | | ##?# ## #?#"#""####### ?????????? | | ##?##### #?# ""###?###"?????????? | | ### ###???# #?# X"### # " ?????????? | | ##?# ##?## ##???????????????????????? | | #### ### ##????????????????????????? | | # ### #?????????????????????????? | +----------------------------------------------------+ Best States ------------- Heat Dissipation 25 Energy Generation 19 Energy Capacity 315 Matter Stores 300 Matter Capacity 300 Sight Range 16 Terrain Scan Density 10 Armor Coverage 800 Evasion (%) 40 Recoil Reduction 2 Item Schematics ----------------- None Robot Schematics ------------------ None Fabricated ------------ Nothing Repaired ---------- Nothing Studied --------- None Alien Tech Used ----------------- None Achievements -------------- None Challenges ------------ None Game ------ Seed SiegeDeuteriumThrower Manual? 0 Play Time 00:29:18 Cumulative 65.4 hours Start 2025.12.31 @ 06:52:08 End 2025.12.31 @ 07:20:39 Sessions 1 Manual Loads 0 Difficulty Rogue Special Mode None Game No. 30 Rogue 30 Adventurer 0 Explorer 0 Win Type - Total 0 Types 0/0/0/0/0/0/0/0/0/0 Lore% 50 Gallery% 55 Achievement% 50 Wizard Run 0 Options --------- Layout 0 ASCII 0 Keyboard 0 Movement Mouse Keybinds 0 Fullscreen 1 Font 24/Smallcaps Map View 183x50 Zoom Use 0% Tactical HUD 1 Map Filters NONE Filters NONE Steam 1 RUN: 5e5594c8-026c-402e-a11b-cd93b91bed5b